Cogmind - Beta 16.1 @@@ ROGUE MODE // 2026.02.15 @ 22:30:44 Player: the Result: Destroyed by Executioner with Helical Railgun Performance ------------- Evolutions (5) 2500 Regions Visited (8) 1600 Robots Destroyed (73) 365 Value Destroyed (2136) 2136 Prototype IDs (40) 800 Alien Tech Used (0) 0 Bonus (5208) 5208 TOTAL SCORE: 12609 Bonus ------- High Alert Combat Kills 125 Follower Combat Kills 3862 Registered with UFD 300 Met Optimus in HQ 500 MAIN.C Attacked Warlord 500 Warlord Defense Kills 870 Friendly Fire -949 Cogmind --------- Core Integrity 0/1000 Matter 300/300 Energy 78/100 System Corruption 10% Temperature Cool (0) Movement Flying (45) Location -5/Warlord Parts ------- > --- POWER (1) -------- (None) > --- PROPULSION (4) --- Impulse Thruster Array > --- UTILITY (6) ------ (None) > --- WEAPON (6) ------- (None) > --- INVENTORY (5) ---- Gun Armor Improved Remote Shield Amulet of Y3-NDR Helical Railgun CPS Tube (2) Peak State ------------ > --- POWER ------------ Reinforced Fission Core > --- PROPULSION ------- Flexi-carbon Leg Enhanced Biometal Leg Enhanced Biometal Leg Overtuned Scrapsphere > --- UTILITY ---------- Large Storage Unit Experimental Matter Compressor Advanced Signal Interpreter Medium Reactive Plating Advanced Remote Force Field Amulet of Y3-NDR > --- WEAPON ----------- Vortex Driver 1B-0RG's Assimilator > --- INVENTORY -------- Overtuned Scrapsphere Advanced Cooling System Energy Well Matter Compressor Improved Sensor Array Gun Armor Improved Remote Shield A0-MCA's Component Scanner Vortex Driver Vortex Driver CPS Tube [Rating: 147] Favorites ----------- Power Makeshift Power Source Engine Makeshift Power Source Power Core Reinforced Fission Core Reactor Light Antimatter Reactor Propulsion Myomer Leg Treads Light Treads Leg Myomer Leg Wheel Overtuned Scrapsphere Flight Unit Impulse Thruster Array Utility Large Storage Unit Device Scrap Suit Storage Large Storage Unit Processor Advanced Signal Interpreter Protection Improved Medium Armor Plating Weapon Heavy Plasma Cannon Energy Gun Medium Laser Energy Cannon Heavy Plasma Cannon Ballistic Gun Subdweller Machine Gun Ballistic Cannon Bore Cannon Special Weapon Multitool Slashing Weapon Chainsword Special Melee Weapon 1B-0RG's Assimilator Build | -11 -10 -10 -7 -7 -5 -5 -5 -5 ------- Run | Yrd Mat Sub Rec Scr Fac Upp Upp War Slots Evolved 10 | . . . . . 10 . . . Power . | . . . . . . . . . Propulsion 2 | . . . . . 2 . . . Utility 4 | . . . . . 4 . . . Weapon 4 | . . . . . 4 . . . Parts Attached 88 | 8 15 16 1 6 10 4 6 22 Power 15 | 2 4 3 . 1 . 3 1 1 Engine 8 | 2 3 2 . 1 . . . . Core 6 | . 1 1 . . . 3 1 . Reactor 1 | . . . . . . . . 1 Propulsion 16 | 2 3 2 . 2 1 . 1 5 Treads 6 | 2 3 . . . . . 1 . Leg 6 | . . 2 . . . . . 4 Wheel 3 | . . . . 2 1 . . . Hover . | . . . . . . . . . Flight 1 | . . . . . . . . 1 Utility 30 | 2 3 3 . 2 6 1 3 10 Device 15 | 1 1 1 . . 4 1 1 6 Storage 7 | 1 2 1 . 1 . . . 2 Processor 2 | . . . . . 1 . 1 . Hackware . | . . . . . . . . . Protection 6 | . . 1 . 1 1 . 1 2 Artifact . | . . . . . . . . . Weapon 27 | 2 5 8 1 1 3 . 1 6 Energy Gun 2 | 1 . . . . . . . 1 Energy Cannon 10 | . 3 1 1 1 . . . 4 Ballistic Gun 7 | 1 . 5 . . . . . 1 Ballistic Cannon 3 | . 1 1 . . 1 . . . Launcher . | . . . . . . . . . Special Weapon 3 | . 1 1 . . . . 1 . Impact Weapon . | . . . . . . . . . Slashing Weapon 1 | . . . . . 1 . . . Piercing Weapon . | . . . . . . . . . Special Melee Weapon 1 | . . . . . 1 . . . Unidentified Prototypes 11 | . . 1 . . 2 . 1 7 Corrupted Parts 2 | . . . . . . . 1 1 System Corruption 14 | . . . . . . . 6 8 Parts Lost 13 | . . . . . 2 2 . 9 Power 2 | . . . . . 1 1 . . Propulsion 1 | . . . . . . . . 1 Utility 8 | . . . . . 1 1 . 6 Weapon 2 | . . . . . . . . 2 Highest Loss Streak 4 | . . . . . 2 1 . 4 To Critical Strikes . | . . . . . . . . . Average Backups 10 | 3 9 10 4 5 12 12 14 12 Power . | . 1 . . . . . . . Propulsion . | . 2 . 2 1 . . . . Utility 4 | 1 3 4 1 1 6 6 7 6 Weapon 2 | 1 2 3 . . 2 3 3 2 Tool/Special . | . . . . . . . . . Unused Backups 35 | 2 2 15 . 3 2 1 3 7 Power 2 | 1 . . . . . . . 1 Propulsion 10 | . . 6 . 3 . 1 . . Utility 15 | 1 . 7 . . 1 . 2 4 Weapon 7 | . 2 2 . . 1 . 1 1 Tool/Special 1 | . . . . . . . . 1 Average Slot Usage (%) 79 | . 99 87 100 90 57 54 58 61 Engine 6 | . 10 7 14 14 3 . . . Core 3 | . 3 6 . . . 2 5 4 Treads 4 | . 27 5 . . . . . 1 Leg 11 | . . 22 28 16 . . . 1 Wheel 5 | . . . . 11 12 11 11 10 Device 7 | . 14 2 14 . 11 11 12 13 Storage 9 | . 14 10 14 14 5 5 5 7 Processor 1 | . . . . . 4 5 5 4 Protection 3 | . . 3 . 4 5 3 3 1 Energy Cannon 7 | . 14 2 8 19 4 3 2 5 Ballistic Gun 3 | . 7 8 . . . . . . Ballistic Cannon 5 | . 3 11 5 . . . 1 . Special Weapon 4 | . 1 5 14 8 . . 1 . Special Melee Weapon 1 | . . . . . 4 5 5 4 Peak Build Rating 147 | 7 10 39 38 39 110 112 130 147 Average Rating 57 | 5 8 28 37 34 105 106 116 121 On Entrance 52 | . 7 10 38 38 35 102 111 130 Avg Prop Armor Cover (%) 7 | . . . . 4 . . 9 9 Naked Turns 7 | . . . . . . . . 7 Heaviest Build 153 | 15 22 67 27 54 109 116 118 153 Greatest Support 100 | 40 40 50 50 50 26 16 16 100 Greatest Overweight (x) 17 | . . 1 . 17 6 7 7 16 Average Overweight (x) 2 | . . . . 1 5 5 6 6 Largest Inventory Capacity 25 | 8 10 25 10 15 15 15 15 15 Average Capacity 14 | 7 9 16 10 12 15 15 15 14 Most Carried 25 | 7 10 25 10 15 14 15 15 15 Average Carried 12 | 3 9 13 10 11 12 12 14 12 Final Capacity 15 | 8 10 10 10 15 15 15 15 5 Final Carried 15 | 5 10 10 10 15 12 13 15 5 Scrap Suit Usage (%) 30 | . . . . . 100 100 91 54 Parts Cannibalized 6 | . . . . . 1 2 3 . Class Distribution -------------------- 57% | Mutant 26% | Scavenger-Mutant 8% | Derelict-Mutant 4% | Subdweller-Mutant Dominant Class ---------------- Mutant | -10/Materials Scavenger-Mutant | -10/Subcaves Mutant | -7/Recycling Mutant | -7/Scraptown Mutant | -5/Factory Mutant | -5/Upper Caves Mutant | -5/Upper Caves Mutant | -5/Warlord Resources | -11 -10 -10 -7 -7 -5 -5 -5 -5 ----------- Run | Yrd Mat Sub Rec Scr Fac Upp Upp War Matter Collected 6711 | 322 450 1157 136 60 813 810 1202 1761 Remotely . | . . . . . . . . . Salvage Created 3086 | 180 992 437 301 . 593 200 216 167 Parts 160 | 19 66 25 5 . 26 6 7 6 Haulers Intercepted 2 | . 2 . . . . . . . Recyclers Shooed 6 | . 2 . 2 . 2 . . . Parts Field Recycled . | . . . . . . . . . Retrieved Matter . | . . . . . . . . . Parts Self-Destructed 66 | . . 15 . . . 22 29 . Prevented 19 | . . . . . . 4 15 . Parts Restored . | . . . . . . . . . Kills | -11 -10 -10 -7 -7 -5 -5 -5 -5 ------- Run | Yrd Mat Sub Rec Scr Fac Upp Upp War Combat Hostiles Destroyed 43 | . 18 9 . . 9 . 1 6 Guns 6 | . 3 3 . . . . . . Cannons 36 | . 15 6 . . 8 . 1 6 Classes Destroyed 20 | 3 7 4 . . 2 1 . 3 Worker 4 | 1 3 . . . . . . . Builder 2 | . 1 . . . 1 . . . Tunneler 5 | 4 . . . . 1 . . . Hauler 2 | . 2 . . . . . . . Recycler 9 | 1 3 . 4 . 1 . . . Mechanic 1 | . 1 . . . . . . . Operator 2 | . 2 . . . . . . . Watcher 2 | . 2 . . . . . . . Swarmer 13 | . 6 2 . . 4 . 1 . Grunt 19 | . 12 4 . . 1 . . 2 Sentry 2 | . . 1 . . 1 . . . Demolisher 1 | . . . . . . . . 1 Specialist 1 | . . . . . . . . 1 Hunter 1 | . . . . . 1 . . . Programmer 3 | . . . . . 2 . . 1 Executioner 1 | . . . . . . . . 1 Cobbler 1 | . . 1 . . . . . . Subdweller 3 | . . 3 . . . . . . Zionite 2 | . . 2 . . . . . . Samaritan 1 | . . . . . . 1 . . Best Kill Streak 6 | 3 6 2 3 . 2 . 1 3 Combat Bots Only 5 | . 5 2 . . 2 . 1 3 Max Kills in Single Turn 2 | 1 2 1 1 . 1 1 1 2 Gunslinging . | . . . . . . . . . Exploded . | . . . . . . . . . Melee . | . . . . . . . . . Uniques/NPCs Destroyed . | . . . . . . . . . Combat | -11 -10 -10 -7 -7 -5 -5 -5 -5 -------- Run | Yrd Mat Sub Rec Scr Fac Upp Upp War Hostile Shots Fired 456 | . 66 56 18 . 118 33 11 154 Missed 151 | . 25 19 9 . 43 7 2 46 Hits 305 | . 41 37 9 . 75 26 9 108 Projectile 305 | . 41 37 9 . 75 26 9 108 AOE 8 | . . . . . . . . 8 Critical Strikes 12 | . . 1 . . 3 1 . 7 Damage Taken 6033 | . 477 479 85 . 1577 428 166 2821 Core 1222 | . 90 114 6 . 281 63 12 656 Absorbed by Shields 248 | . . . . . . 69 8 171 Ignored by Resistances 415 | . . . . . . . . 415 Regen/Repaired (Parts) 916 | . 134 . . . 197 251 70 264 Core Remaining (%) 58 | 100 . . . 16 . . . . Volleys Fired 468 | 14 104 148 18 . 88 27 46 23 Largest 3 | 2 2 2 1 . 1 1 1 3 Hottest 300 | 70 120 110 48 . 90 90 90 300 Shots Fired 600 | 25 183 177 18 . 88 28 50 31 Gun 148 | 25 48 71 . . . . . 4 Cannon 321 | . 108 48 18 . 88 10 22 27 Launcher . | . . . . . . . . . Special 131 | . 27 58 . . . 18 28 . Kinetic 238 | 14 86 104 18 . 6 1 5 4 Thermal 332 | 11 97 73 . . 82 27 42 . Explosive . | . . . . . . . . . Electromagnetic . | . . . . . . . . . Entropic 27 | . . . . . . . . 27 Robot Hit Streak 21 | 13 15 12 6 . 5 19 21 6 Robot Miss Streak 7 | 2 4 7 3 . 3 3 2 3 Penetration Max 1 | . . . . . 1 . . 1 Secondary Targets . | . . . . . . . . . Shots Hit Robots 283 | 19 84 62 8 . 36 24 34 16 Core Hits 124 | 6 40 24 5 . 16 13 12 8 Critical Kills 4 | . . 1 1 . 2 . . . Critical Parts Destroyed 3 | . . 1 2 . . . . . Critical Strikes 19 | . . 4 3 . 2 . . 10 Meltdown 2 | . . . . . 2 . . . Destroy 7 | . . 4 3 . . . . . Sunder 10 | . . . . . . . . 10 Melee Attacks 22 | . . . . . 5 7 10 . Impact . | . . . . . . . . . Slashing 22 | . . . . . 5 7 10 . Piercing . | . . . . . . . . . Sneak Attacks 3 | . . . . . 2 1 . . Combat Hostiles . | . . . . . . . . . Follow-up Attacks . | . . . . . . . . . Damage Inflicted 7489 | 246 1511 952 271 . 1527 433 477 2072 Guns 957 | 246 336 307 . . . . . 68 Cannons 5264 | . 1038 413 165 . 1267 72 305 2004 Explosions 71 | . 71 . . . . . . . Melee 567 | . . . . . 260 307 . . Ramming 124 | . 18 . 106 . . . . . Kinetic 1910 | 122 683 648 165 . 195 . 29 68 Thermal 2813 | 124 739 304 . . 1072 126 448 . Explosive 71 | . 71 . . . . . . . Electromagnetic . | . . . . . . . . . Impact . | . . . . . . . . . Slashing 567 | . . . . . 260 307 . . Piercing . | . . . . . . . . . Entropic 2004 | . . . . . . . . 2004 Highest Corruption 12 | . . . . . 5 5 11 12 Average Corruption 5 | . . . . . 2 5 7 6 Corruption Purged . | . . . . . . . . . Corruption Blocked . | . . . . . . . . . Effects 150 | . . . . . 11 57 79 3 Message Errors 38 | . . . . . 4 11 22 1 Matter Fused 28 | . . . . . 2 10 16 . Heat Flow Errors 21 | . . . . . 1 8 12 . Energy Discharges 23 | . . . . . . 13 9 1 Parts Rejected 1 | . . . . . 1 . . . Parts Fused 2 | . . . . . 1 . 1 . Data Loss (minor) 21 | . . . . . 1 9 11 . Data Loss (major) 5 | . . . . . 1 3 1 . Misfires 5 | . . . . . . 1 4 . Alerts 5 | . . . . . . 2 3 . Weapon Failures 1 | . . . . . . . . 1 Overload Shots . | . . . . . . . . . Overflow Damage 293 | . 4 . 5 . 122 45 23 94 Projectiles 152 | . 4 . 5 . 26 . 23 94 Explosions . | . . . . . . . . . Melee 141 | . . . . . 96 45 . . Knockbacks 7 | . . 3 2 . 1 . 1 . Impact 1 | . . . 1 . . . . . Kinetic 6 | . . 3 1 . 1 . 1 . Secondary . | . . . . . . . . . Self-Inflicted Damage 80 | . 80 . . . . . . . Shots 1 | . 1 . . . . . . . Rammed 6 | . 6 . . . . . . . Targets Rammed 24 | 1 6 . 17 . . . . . Kicked 17 | . . . 17 . . . . . Crushed 1 | 1 . . . . . . . . Highest Temperature 322 | 36 318 7 262 . 199 243 252 322 Average Temperature 84 | 15 88 4 110 . 51 93 80 118 Received Heat Transfer 1004 | . 126 90 12 . 90 30 . 656 Effects 6 | . 5 . 1 . . . . . Energy Bleed 2 | . 2 . . . . . . . Interference 4 | . 3 . 1 . . . . . Siege Activations . | . . . . . . . . . Martial Activations . | . . . . . . . . . Shielding Activations . | . . . . . . . . . Robots Disrupted . | . . . . . . . . . Combat Hostiles . | . . . . . . . . . Robots Corrupted . | . . . . . . . . . Combat Hostiles . | . . . . . . . . . Parts Fried . | . . . . . . . . . Impact Corruptions . | . . . . . . . . . Robots Melted 2 | . . . . . 2 . . . Combat Hostiles 1 | . . . . . 1 . . . Parts Melted 7 | 1 1 . . . 5 . . . Heat Transferred 5961 | 370 1543 898 . . 1600 550 1000 . Parts Sabotaged . | . . . . . . . . . Parts Stolen . | . . . . . . . . . Parts Stripped . | . . . . . . . . . Power Chain Reactions . | . . . . . . . . . Alert | -11 -10 -10 -7 -7 -5 -5 -5 -5 ------- Run | Yrd Mat Sub Rec Scr Fac Upp Upp War Maximum Alert Level 4 | . 1 . . . 4 . . . Low Security (%) 78 | 100 79 . 100 . 60 . . . Level 1 11 | . 20 . . . 5 . . . Level 2 1 | . . . . . 3 . . . Level 3 9 | . . . . . 29 . . . Level 4 . | . . . . . . . . . Level 5 . | . . . . . . . . . High Security . | . . . . . . . . . Max Security . | . . . . . . . . . Peak Influence 1121 | 10 302 . 100 . 1121 . . . Initial 4 | . . . 4 . . . . . Average 159 | 1 90 . 26 . 365 . . . Influence Increases 5592 | 30 795 220 304 . 1709 345 581 1608 Destroy 0b10 Robot/C 3020 | . 360 140 60 . 860 240 320 1040 Destroy 0b10 Robot/NC 200 | 30 70 . 20 . 45 5 15 15 Destroy Leader 332 | . 88 20 . . 164 30 30 . Allied During Kill 1071 | . . . 6 . 271 40 216 538 Successful Hack 111 | . 37 . 14 . 60 . . . Select Force Hacks 210 | . 60 . 150 . . . . . Disable Machine 360 | . 105 . 45 . 210 . . . Destroy Structure 153 | . 60 . 9 . 84 . . . Partial Spotted 15 | . 15 . . . . . . . Lose Combat Pursuer 120 | . . 60 . . 15 30 . 15 Influence Decreases 4470 | 30 530 475 314 . 613 1070 766 672 Entered New Map 798 | . . 128 6 . . 406 72 186 Time Decay 2966 | 30 530 307 272 . 373 644 674 136 Lost Part 130 | . . . . . 20 20 . 90 Lost Ally 576 | . . 40 36 . 220 . 20 260 Squads Dispatched 22 | . 4 . . . 18 . . . Investigation 9 | . 3 . . . 6 . . . Extermination 4 | . . . . . 4 . . . Reinforcement 5 | . 1 . . . 4 . . . Assault 1 | . . . . . 1 . . . Garrison 3 | . . . . . 3 . . . Intercept . | . . . . . . . . . Searches Triggered . | . . . . . . . . . Construction Impeded 2 | . . . . . 2 . . . Haulers Reinforced 2 | . . . . . 2 . . . Active Scanning Responses . | . . . . . . . . . Cargo Convoy Interrupts . | . . . . . . . . . Stealth | -11 -10 -10 -7 -7 -5 -5 -5 -5 --------- Run | Yrd Mat Sub Rec Scr Fac Upp Upp War Distress Signals 2 | . . . . . 2 . . . Communications Jammed . | . . . . . . . . . Distress Signals . | . . . . . . . . . Times Spotted 209 | . 34 21 2 . 46 12 9 85 Peak Tracking Total 17 | . 6 6 2 . 4 3 4 17 Tactical Retreats 4 | . . 1 . . 1 1 . 1 Traps | -11 -10 -10 -7 -7 -5 -5 -5 -5 ------- Run | Yrd Mat Sub Rec Scr Fac Upp Upp War Traps Triggered 2 | . 1 . . . . . . 1 Indirectly . | . . . . . . . . . Trap Hack Attempts . | . . . . . . . . . Triggered . | . . . . . . . . . Disarmed . | . . . . . . . . . Reprogrammed . | . . . . . . . . . Reused . | . . . . . . . . . Traps Extracted . | . . . . . . . . . Installed . | . . . . . . . . . Triggered . | . . . . . . . . . Most Traps Carried 1 | . . 1 . 1 . . . . Machines | -11 -10 -10 -7 -7 -5 -5 -5 -5 ---------- Run | Yrd Mat Sub Rec Scr Fac Upp Upp War Machines Disabled 28 | . 7 1 3 . 14 . 2 1 Max in Single Turn 3 | . 3 1 1 . 1 . 1 1 Machines Repaired . | . . . . . . . . . Machines Dismantled . | . . . . . . . . . Machines Sabotaged . | . . . . . . . . . Overloaded Fab Kills . | . . . . . . . . . Hacking | -11 -10 -10 -7 -7 -5 -5 -5 -5 --------- Run | Yrd Mat Sub Rec Scr Fac Upp Upp War Machines Accessed 40 | . 9 2 14 3 10 1 . 1 Terminals 16 | . 6 . 6 . 3 1 . . Fabricators 1 | . . . . . 1 . . . Repair Stations 1 | . 1 . . . . . . . Recycling Units 14 | . 2 . 6 . 6 . . . Scanalyzers . | . . . . . . . . . Garrison Access . | . . . . . . . . . Total Hacks 109 | . 30 6 42 11 18 1 . 1 Successful 69 | . 19 6 22 11 9 1 . 1 Failed 40 | . 11 . 20 . 9 . . . Catastrophic 8 | . 1 . 6 . 1 . . . Database Lockouts . | . . . . . . . . . Manual 55 | . 19 . 19 . 16 . 1 . Terminals 46 | . 21 . 15 . 9 1 . . Fabricators 1 | . . . . . 1 . . . Repair Stations 4 | . 4 . . . . . . . Recycling Units 32 | . 5 . 19 . 8 . . . Scanalyzers . | . . . . . . . . . Garrison Access . | . . . . . . . . . Terminal Hacks 38 | . 6 6 11 11 2 1 . 1 Record 18 | . . 5 8 4 . 1 . . Part Schematic 2 | . . . 1 . 1 . . . Robot Analysis 7 | . 1 . . 6 . . . . Prototype ID Bank 5 | . 4 . 1 . . . . . Open Door 1 | . . . . . . . . 1 Terminal Index 1 | . 1 . . . . . . . Unreport Threat 1 | . . . 1 . . . . . Locate Traps 1 | . . . . . 1 . . . Proto ID Catalog 2 | . . 1 . 1 . . . . Fabricator Hacks . | . . . . . . . . . Repair Station Hacks 4 | . 4 . . . . . . . Scan Component 2 | . 2 . . . . . . . Repair 2 | . 2 . . . . . . . Recycling Unit Hacks 6 | . 2 . 4 . . . . . Retrieve Components 6 | . 2 . 4 . . . . . Scanalyzer . | . . . . . . . . . Garrison Access Hacks . | . . . . . . . . . Unauthorized Hacks 21 | . 7 . 7 . 7 . . . Terminals 8 | . 5 . 2 . 1 . . . Assimilate 1 | . 1 . . . . . . . Botnet 6 | . 3 . 2 . 1 . . . Operators 1 | . 1 . . . . . . . Fabricators 1 | . . . . . 1 . . . Liberate 1 | . . . . . 1 . . . Repair Stations . | . . . . . . . . . Recycling Units 12 | . 2 . 5 . 5 . . . Tunnel 7 | . 2 . 5 . . . . . Fedlink 5 | . . . . . 5 . . . Scanalyzers . | . . . . . . . . . Garrison Access . | . . . . . . . . . Data Cores Recovered . | . . . . . . . . . Used . | . . . . . . . . . Hacking Detections 24 | . 7 . 12 . 5 . . . Full Trace Events 2 | . . . 1 . 1 . . . Feedback Events . | . . . . . . . . . Feedback Blocked . | . . . . . . . . . Robot Schematics Acquired . | . . . . . . . . . Robots Built . | . . . . . . . . . Authchips . | . . . . . . . . . Time . | . . . . . . . . . Total Robot Build Rating . | . . . . . . . . . Part Schematics Acquired 2 | . . . 1 . 1 . . . Parts Built . | . . . . . . . . . Authchips . | . . . . . . . . . Time . | . . . . . . . . . Total Part Build Rating . | . . . . . . . . . Part Studies Acquired . | . . . . . . . . . Parts Repaired 2 | . 2 . . . . . . . Time 52 | . 52 . . . . . . . Parts Recycled . | . . . . . . . . . Recycled Matter . | . . . . . . . . . Retrieved Matter . | . . . . . . . . . Retrieved Components 23 | . 1 . 22 . . . . . Parts Scanalyzed . | . . . . . . . . . Part Schematics Acquired . | . . . . . . . . . Parts Damaged . | . . . . . . . . . Bothacking | -11 -10 -10 -7 -7 -5 -5 -5 -5 ------------ Run | Yrd Mat Sub Rec Scr Fac Upp Upp War Used RIF Installer . | . . . . . . . . . Robots Hacked 1 | . . . . . . . 1 . Non-combat . | . . . . . . . . . Combat 1 | . . . . . . . 1 . Robot Hacks Applied 1 | . . . . . . . 1 . parse_system 1 | . . . . . . . 1 . Relay Couplers Released . | . . . . . . . . . Fabnet Peak Effective % . | . . . . . . . . . Robots Rewired 5 | . . . . . . . . 5 Allies Hacked 1 | . . . . . 1 . . . Hacks Repelled . | . . . . . . . . . Allies | -11 -10 -10 -7 -7 -5 -5 -5 -5 -------- Run | Yrd Mat Sub Rec Scr Fac Upp Upp War Total Allies 28 | . . 8 . . 3 . 8 9 Largest Group 8 | . . 5 5 1 3 . 4 8 Highest-Rated Group 514 | . . 95 95 19 90 . 324 514 Highest-Rated Ally 102 | . . 21 19 19 30 . 81 102 Initial UFD Resources 59 | . . . . . 39 59 59 59 Total Orders 34 | . . . . . 1 11 2 20 STAY 14 | . . . . . . 6 1 7 ROAM 1 | . . . . . . . 1 . FOLLOW 9 | . . . . . . 5 . 4 AID 10 | . . . . . 1 . . 9 Ally Attacks 474 | . . 7 22 . 169 31 41 204 Total Damage 18050 | . . 103 392 . 5860 1047 1856 8792 Kills 124 | . . . 3 . 40 13 15 53 Allies Corrupted 3 | . . . . . 1 . . 2 Allies Melted 2 | . . 1 . . . . . 1 Borg Created 20 | . . . . . 10 3 1 6 Largest Collective 4 | . . . . . 3 3 3 4 Intel | -11 -10 -10 -7 -7 -5 -5 -5 -5 ------- Run | Yrd Mat Sub Rec Scr Fac Upp Upp War Active Infowar (turns) 5834 | 18 2140 17 . . 845 2102 712 . Sensors 3659 | . . . . . 845 2102 712 . Seismic 2175 | 18 2140 17 . . . . . . Robot Analysis Total 7 | . 1 . . 6 . . . . Derelict Logs Recovered 8 | . . 2 . 3 . 1 2 . Drone Launches . | . . . . . . . . . Drone Recoveries . | . . . . . . . . . Exploration | -11 -10 -10 -7 -7 -5 -5 -5 -5 ------------- Run | Yrd Mat Sub Rec Scr Fac Upp Upp War Turns Passed 22336 | 144 2140 7718 879 3648 1399 2332 2623 1453 Spaces Moved 13053 | 54 979 4218 661 2306 837 1549 1582 867 Core 26 | 3 . . . 11 . . . 12 Treads 1749 | 51 979 719 . . . . . . Legs 5921 | . . 3499 661 1714 . . . 47 Wheels 5348 | . . . . 581 837 1549 1582 799 Hover . | . . . . . . . . . Flight 9 | . . . . . . . . 9 Fastest Speed 45 | 50 160 120 120 100 117 120 130 45 Average Speed 140 | 153 160 157 120 123 126 129 135 141 Slowest Speed 900 | 160 160 190 120 900 130 140 140 240 Overloaded Moves . | . . . . . . . . . Propulsion Burnouts . | . . . . . . . . . Robots Hopped . | . . . . . . . . . Potential Cave-ins 3 | . . . . . . . . 3 Cave-ins Triggered . | . . . . . . . . . Exploration Rate (%) 75 | 3 99 89 99 91 30 98 98 74 Regions Visited 8 Branch Regions 6 Pre-discovered Areas 12 | . 2 1 5 2 1 1 . . Known Exits Taken 3 | . . . . . 1 1 1 . Unknown Exits Taken 5 | 1 1 1 1 1 . . . . Scrap Searched 25 | . . 11 . 11 . 1 2 . Spaces Dug 49 | . 15 . . . 24 4 6 . Terrain Destroyed 167 | . 59 3 6 . 48 11 14 26 Melee 7 | . . . . . . 3 4 . Projectile 126 | . 25 3 6 . 48 8 10 26 AOE 34 | . 34 . . . . . . . Terrain Rammed . | . . . . . . . . . Walls Destroyed . | . . . . . . . . . Machines Disabled . | . . . . . . . . . Actions | -11 -10 -10 -7 -7 -5 -5 -5 -5 --------- Run | Yrd Mat Sub Rec Scr Fac Upp Upp War Total 16304 | 88 1316 5138 725 3110 1052 1825 1998 1052 Wait 2306 | . 177 654 28 776 80 218 318 55 Move 13045 | 53 978 4217 660 2305 836 1548 1581 867 Hop . | . . . . . . . . . Pick Up 117 | 10 18 37 . 14 7 3 10 18 Fast Attach 26 | 3 . 7 1 1 3 2 2 7 Attach 29 | 4 2 3 . 3 5 1 1 10 Detach 8 | . . 1 . . 3 . 2 2 Swap 86 | 1 15 17 . 2 10 14 16 11 Drop 114 | 2 16 48 1 9 3 2 9 24 Fire 468 | 14 104 148 18 . 88 27 46 23 Melee 22 | . . . . . 5 7 10 . Ram . | . . . . . . . . . Kick 17 | . . . 17 . . . . . Crush 7 | 1 6 . . . . . . . Escape Stasis . | . . . . . . . . . Rewire 30 | . . . . . 1 . 1 28 Trap . | . . . . . . . . . Miscellaneous 29 | . . 6 . . 11 3 2 7 Route ------- -11/Scrapyard -10/Materials (discovered 6 exits: [*Mat x3] / [*Min x2] / *Sub) -10/Subcaves (discovered 4 exits: [*Mat x2] / *Rec / *Scr) -7/Recycling (discovered 2 exits: *Fac / *Scr) -7/Scraptown (discovered 2 exits: *Fac x2) -5/Factory (discovered 2 exits: *Fac / *Upp) -5/Upper Caves (discovered 2 exits: *Upp / *War) -5/Upper Caves (discovered 2 exits: *Fac / *War) -5/Warlord History --------- Turn | Location | Event 2 | -11/Scrapyard | Met Revision 17 15 | -11/Scrapyard | Discovered new exit (range 15) 145 | -11/Scrapyard | Entered Materials 318 | -10/Materials | Build established: Mutant 450 | -10/Materials | Discovered new exit (range 9) 806 | -10/Materials | Discovered new exit (range 5) 916 | -10/Materials | Discovered new exit (range 7) 977 | -10/Materials | Repaired Lgt. Cannon 1029 | -10/Materials | Discovered new exit (range 14) 1823 | -10/Materials | Discovered new exit (range 9) 2063 | -10/Materials | Repaired Lgt. Treads 2276 | -10/Materials | Discovered new exit (range 6) 2285 | -10/Materials | Entered Subcaves 2286 | -10/Subcaves | Approached by a straggling Scientist 2701 | -10/Subcaves | Discovered new exit (range 14) 2715 | -10/Subcaves | Learned location of Zion (-7) 2715 | -10/Subcaves | Met a Zionite searching for "candidates" 2830 | -10/Subcaves | A swath of the cavern ceiling suddenly collapsed 3203 | -10/Subcaves | Core integrity fell below 50% 3214 | -10/Subcaves | Discovered new exit (range 11) 3680 | -10/Subcaves | Visited Clippyterm 3684 | -10/Subcaves | Learned Research security intel 3684 | -10/Subcaves | Learned Factory stockpile data 3705 | -10/Subcaves | Build established: Subdweller-Mutant 3736 | -10/Subcaves | Learned Materials emergency access door positions 3832 | -10/Subcaves | Shifting Twisted Machinery released Flamer 3849 | -10/Subcaves | Shifting Twisted Machinery released Flamer 3877 | -10/Subcaves | Disturbed a concealed Subdweller 3979 | -10/Subcaves | Visited 4L-MR0's lab 4437 | -10/Subcaves | Discovered new exit (range 6) 4699 | -10/Subcaves | Build established: Scavenger-Mutant 6647 | -10/Subcaves | Found Prototype Special Melee Weapon 6652 | -10/Subcaves | Found Gun Armor 7041 | -10/Subcaves | Learned Materials trap positions 8140 | -10/Subcaves | Shifting Twisted Machinery released Battle Cannon 8222 | -10/Subcaves | Shifting Twisted Machinery released Barrage Gun 8558 | -10/Subcaves | Visited triangular shrine 8662 | -10/Subcaves | Found Prototype Device 8662 | -10/Subcaves | Identified V3-11A's Pendant 8667 | -10/Subcaves | Befriended Subdweller 9169 | -10/Subcaves | A Subdweller sparked back to life 9169 | -10/Subcaves | A Subdweller sparked back to life 9169 | -10/Subcaves | A Subdweller sparked back to life 9172 | -10/Subcaves | Befriended Subdweller 9172 | -10/Subcaves | Befriended Subdweller 9172 | -10/Subcaves | Befriended Subdweller 9172 | -10/Subcaves | Core integrity fell below 20% 9180 | -10/Subcaves | Found Arachnoskeleton 9242 | -10/Subcaves | Befriended Subdweller 9247 | -10/Subcaves | Befriended Subdweller 9257 | -10/Subcaves | Befriended Subdweller 9267 | -10/Subcaves | Befriended Subdweller 10003 | -10/Subcaves | Entered Recycling 10003 | -7/Recycling | Accompanied by 5 allies 10326 | -7/Recycling | Discovered new exit (range 14) 10507 | -7/Recycling | Scanned before Scraplab entrance 10525 | -7/Recycling | Entered Scraplab 10646 | -7/Recycling | Build established: Mutant 10876 | -7/Recycling | Discovered new exit (range 2) 10882 | -7/Recycling | Entered Scraptown 10882 | -7/Scraptown | Accompanied by 1 ally 11034 | -7/Scraptown | Visited IN-MT5's Study 11072 | -7/Scraptown | Delivered V3-11A's Pendant to T0-NE2 in exchange for information 11362 | -7/Scraptown | Scanned Subdweller tech in exchange for log data 11363 | -7/Scraptown | Learned location of Testing (-2) 11434 | -7/Scraptown | Discovered new exit (range 13) 11497 | -7/Scraptown | Visited Bundlers 11811 | -7/Scraptown | Visited CPS Storage 11835 | -7/Scraptown | Visited Cave Peace 11880 | -7/Scraptown | Visited Awakened 11919 | -7/Scraptown | Visited UFD Registry 11919 | -7/Scraptown | Registered with UFD as "Fluxdome" 11950 | -7/Scraptown | Visited Science Guys 12009 | -7/Scraptown | Visited A0-MCA Data Center 12031 | -7/Scraptown | Visited Junk Repository 12073 | -7/Scraptown | Visited Scrap Suit Storage 12095 | -7/Scraptown | Visited Analyses Database 12123 | -7/Scraptown | Visited Abandonware Association 12139 | -7/Scraptown | Learned abandonware demo "SHUTEYE.EXE" 12139 | -7/Scraptown | Learned abandonware demo "TRNCOAT.EXE" 12161 | -7/Scraptown | Visited DA-N13 Charitable Foundation 12171 | -7/Scraptown | Found DCF Scrap (31 items) 12213 | -7/Scraptown | Visited Chapter 10 12253 | -7/Scraptown | Visited Research Penetration Think Tank 12286 | -7/Scraptown | Visited Curators Association 12546 | -7/Scraptown | Received an X-ray algorithm 12663 | -7/Scraptown | Discovered new exit (range 5) 13050 | -7/Scraptown | Found Scrap Suit 13354 | -7/Scraptown | Build established: Derelict-Mutant 13574 | -7/Scraptown | Visited Comm Corps 13711 | -7/Scraptown | Given a B- rating by A0-MCA 13713 | -7/Scraptown | Found A0-MCA's Component Scanner 14458 | -7/Scraptown | Met Optimus 14458 | -7/Scraptown | Accepted into 0bPrime 14530 | -7/Scraptown | Entered Factory 14530 | -5/Factory | Accompanied by 1 ally 14530 | -5/Factory | Evolved 10 slots: Propulsion x2, Utility x4, Weapon x4 14532 | -5/Factory | Identified 1B-0RG's Assimilator 14533 | -5/Factory | Assimilating 0J-OHS(R) into Collective. 14553 | -5/Factory | Discovered new exit (range 11) 14700 | -5/Factory | Loaded intel: 8 recycling unit locations 14820 | -5/Factory | Identified exit to Factory 14969 | -5/Factory | Assimilating Sage 6a into Collective. 14975 | -5/Factory | Assimilating Sage 6b into Collective. 15115 | -5/Factory | Discovered new exit (range 5) 15120 | -5/Factory | Identified exit to Upper Caves 15136 | -5/Factory | Learned location of Protoforge (-2) 15231 | -5/Factory | Assimilating Sage 6c into Collective. 15259 | -5/Factory | Build established: Mutant 15481 | -5/Factory | Spotted B-75 Beast 15481 | -5/Factory | Garrison activated, responded to threat 15490 | -5/Factory | Assimilating Beast 6a into Collective. 15589 | -5/Factory | Assimilating Slayer 6a into Collective. 15618 | -5/Factory | Lost 4 allies 15668 | -5/Factory | Assimilating Slayer 6b into Collective. 15730 | -5/Factory | First assault squad dispatched 15747 | -5/Factory | Assimilating Sentinel 6a into Collective. 15890 | -5/Factory | Assimilating Sage 6d into Collective. 15914 | -5/Factory | Assimilating Sage 6e into Collective. 15929 | -5/Factory | Entered Upper Caves 15929 | -5/Upper Caves | Accompanied by 1 ally 16026 | -5/Upper Caves | A Derelict revealed a hidden shortcut to "reach the base" 16047 | -5/Upper Caves | Encountered a Warlord checkpoint 17033 | -5/Upper Caves | Assimilating Slayer 6c into Collective. 17385 | -5/Upper Caves | Discovered new exit (range 7) 17398 | -5/Upper Caves | Identified exit to Upper Caves 17781 | -5/Upper Caves | Spotted B-75 Beast 17796 | -5/Upper Caves | Assimilating Beast 6b into Collective. 18060 | -5/Upper Caves | Attracted the attention of an 0b10 checkpoint 18060 | -5/Upper Caves | Assimilating Sentinel 6b into Collective. 18261 | -5/Upper Caves | Entered another Upper Caves area 18261 | -5/Upper Caves | Accompanied by 3 allies 18292 | -5/Upper Caves | Discovered exit to Factory (range 2) 18343 | -5/Upper Caves | Prototype Device suddenly appears! 18347 | -5/Upper Caves | Found Prototype Device 18347 | -5/Upper Caves | Identified Amulet of Y3-NDR 18365 | -5/Upper Caves | Joined by bewildered Wizard 18366 | -5/Upper Caves | Joined by bewildered Wizard 18378 | -5/Upper Caves | Joined by bewildered Wizard 18379 | -5/Upper Caves | Joined by bewildered Wizard 18471 | -5/Upper Caves | Assimilating 2S-C4D(p) into Collective. 18520 | -5/Upper Caves | Joined by bewildered Wizard 18796 | -5/Upper Caves | Entered a destroyed Warlord outpost 18803 | -5/Upper Caves | Learned Factory garrison access intel 19173 | -5/Upper Caves | Discovered new exit (range 14) 19303 | -5/Upper Caves | Acquired the password to a Derelict Tinkerer's latest research 19369 | -5/Upper Caves | Identified exit to Warlord 19414 | -5/Upper Caves | Joined by bewildered Wizard 19415 | -5/Upper Caves | Joined by bewildered Wizard 19417 | -5/Upper Caves | Joined by bewildered Wizard 19444 | -5/Upper Caves | Found Prototype Special Weapon 19700 | -5/Upper Caves | Learned Factory terminal intel 19975 | -5/Upper Caves | System corruption reached 10% 20568 | -5/Upper Caves | Found Botcube 20884 | -5/Upper Caves | Entered Warlord 20884 | -5/Warlord | Accompanied by 6 allies 20928 | -5/Warlord | System corruption cleaned by Quarantine Array 21566 | -5/Warlord | Assimilating Archangel 6b into Collective. 21671 | -5/Warlord | Visited the Vortex Lab 21677 | -5/Warlord | Found Prototype Energy Gun 21677 | -5/Warlord | Identified Vortex Rifle 21684 | -5/Warlord | Found Prototype Energy Cannon 21685 | -5/Warlord | Warlord's base attacked by MAIN.C 21687 | -5/Warlord | Found Prototype Energy Cannon 21689 | -5/Warlord | Found Prototype Energy Cannon 21691 | -5/Warlord | Found Prototype Energy Cannon 21697 | -5/Warlord | Found Vortex Rifle 21785 | -5/Warlord | P-70 Sage assimilated allied VY-QCT(g) 21794 | -5/Warlord | Build established: Commander-Mutant 21894 | -5/Warlord | Identified Vortex Driver (x4) 21909 | -5/Warlord | Found Prototype Device 21909 | -5/Warlord | Identified Exp. Phase Shifter 22018 | -5/Warlord | Assimilating Archangel 6a into Collective. 22035 | -5/Warlord | Warlord forces counterattacked 22097 | -5/Warlord | Assimilating Beamer 6a into Collective. 22116 | -5/Warlord | Spotted Striker 22124 | -5/Warlord | Spotted Executioner 22142 | -5/Warlord | Allies destroyed Executioner 22162 | -5/Warlord | Spotted Executioner 22175 | -5/Warlord | Allies destroyed Executioner 22176 | -5/Warlord | Spotted Striker 22181 | -5/Warlord | Assimilating Striker into Collective. 22190 | -5/Warlord | Spotted Executioner 22207 | -5/Warlord | Spotted Executioner 22208 | -5/Warlord | Spotted Striker 22212 | -5/Warlord | Core integrity fell below 50% 22226 | -5/Warlord | Assimilating Striker into Collective. 22231 | -5/Warlord | Assimilating Slayer 6d into Collective. 22246 | -5/Warlord | Destroyed Executioner 22258 | -5/Warlord | Found Prototype Device 22258 | -5/Warlord | Identified Adv. Kinecellerator 22274 | -5/Warlord | Lost 3 parts (2u1w) 22274 | -5/Warlord | Lost 27 allies 22285 | -5/Warlord | Spotted B-86 Titan 22293 | -5/Warlord | Spotted Striker 22303 | -5/Warlord | Spotted Executioner 22316 | -5/Warlord | Core integrity fell below 20% 22324 | -5/Warlord | Released all parts (14) 22337 | -5/Warlord | Destroyed by Executioner with Helical Railgun Last Messages --------------- 22324_ Released Energy Well. 22324_ Energy Well crushed and broken. 22324_ Released Lgt. Antimatter Reactor. 22324_ Lgt. Antimatter Reactor crushed and broken. 22324_ Released Flexi-carbon Leg. 22324_ Flexi-carbon Leg crushed and broken. 22324_ Dropped Ovr. Scrapsphere. 22324_ Ovr. Scrapsphere crushed and broken. 22324_ Acquired Helical Railgun. 22325_ Penetrated by Slug. 22325_ Slug penetrates Wall. 22327_ Borg Beast 6b suffers critical hit (Burn). 22329_ Slug penetrates Borg Beast 6b. 22329_ Borg Beast 6b destroyed. 22330_ Critical hit (Burn: +37). 22331_ Acquired Impulse Thruster Array. 22334_ Acquired 10 matter. 22337_ Penetrated by Slug. Map ----- +----------------------------------------------------+ | ?????????????????????????????????????????????????? | | ?????????????????????????????????????????????????? | | ###??????????????????????????????????????????????? | | ??????????????????????????????????????????????? | | ??????????????????????????????????????????????? | | #??????????????????????????????????????????????? | | #?? ??????????????????????????????????????????? | | #?# ?????????????????????????????????????????? | | #?# ????????????????????????????????????????? | | #?# ????#+#???????????????????????# ?????###? | | #?# ???# #???????????????????????# ??### ? | | #?# ???# #???????????????????????? ?? ? | | #?? ??# #????????????????????????? ### # | | #??? ### ##??????""????????????????? "# | | #????? #?????#""#?????????????????# ^ ^"# | | ##?????? #?????#""#?????????###?????# # | | ##???????? #?????#""#????????## ######## # | | #?????????# #?????#""########## # ## ## | | ##??????#### #######""## # # # =!# ## | | #???????# Y # "" * # ## ==*[![!!="# | | #???????# %= # "" = =* * =*%=*[![/!*!]] | | #??###### B %= ; ""*!/ = !!!/*=!%[*=!*]% | | #??# Y !! /^ =[ % [%!!=!%![%*%[%%"/!! | | +#### Y %! == !%!*=![=!*===!%%[[ ==% | | # Y [ =[ [=%!%%%%==[!=%%%/=[[= | | # Y @* K %=!* *=%%*][[[![=[*% | | # #BB ""* !=!%/*/=**!%![%[%/[= | | # #BB # "" !%[!= =[==!==!=!=[ | | + # Y "" "# #=!= %[ *=*= % | | # ### ## # ##""##### # !%=*=[% | | # ##""#???#############"=%/[""[ | | # ! ###""#???????????????## [ ""% | | # """"" ##?#""#???????????????# %="!=* | | ##### """"" *! #??#""#??????????????# = *[ | | ????# """"" !&= #???""??????????????# ## ! | | ????# [[ #???????????????????#%"% #? | | ##### #???????????????????# " " #?# | | |/ #???????????????????##" ""#??# | | ^ ^ | #????????????????????# #??## | | #???????????????????? ??# | | " """ """ """ #???????????????????" ## ???# | | " """ """ """ ######?????????????? "?##???# | | " """ """ """ # #???????????????????????# | | # #????????????????????# # | | # #????????????????????## | | + #?????????????????????### | | ######+#########+########???????????????????????## | | # ## #????????????????????????????? | | # ###X ##????????????????????????????? | | # #?##" "##?????????????????????????????? | +----------------------------------------------------+ Best States ------------- Heat Dissipation 71 Energy Generation 21 Energy Capacity 660 Matter Stores 753 Matter Capacity 800 Sight Range 16 Robot Scan Range 15 Terrain Scan Density 10 Armor Coverage 800 Resistance: KI 30 Phase Shifting 20 Evasion (%) 60 Recoil Reduction 2 Kinecelleration 50 Item Schematics ----------------- Imp. Carbon-fiber Leg | -7/Recycling | Hacked Hvy. Armored Exoskeleton | -5/Factory | Hacked Robot Schematics ------------------ None Fabricated ------------ Nothing Repaired ---------- Lgt. Cannon | 15% | -10/Materials Lgt. Treads | 76% | -10/Materials Studied --------- None Alien Tech Used ----------------- None Achievements -------------- Rodney's Helpers Challenges ------------ None Game ------ Seed EnergyTacticalHammerchucker Manual? 0 Play Time 02:53:32 Cumulative 583.5 hours Start 2026.02.14 @ 23:02:03 End 2026.02.15 @ 22:30:44 Sessions 7 Manual Loads 0 Difficulty Rogue Special Mode None Game No. 327 Rogue 327 Adventurer 0 Explorer 0 Win Type - Total 21 Types 12/0/6/0/0/0/1/2/0/0 Lore% 89 Gallery% 82 Achievement% 70 Wizard Run 0 Options --------- Layout 1 ASCII 0 Keyboard 0 Movement Numpad Keybinds 0 Fullscreen 2 Font 24/Smallcaps Map View 50x40 Zoom Use 0% Tactical HUD 1 Map Filters NONE Filters NONE Steam 1 RUN: d70c0eb4-1e79-476a-9923-838cfed632bf